fUSD/lending_fUSD_20241108
["ID","MTS","AMOUNT","RATE_DAILY","PERIOD"]
[341636302,1731049845286,-989.87940566,0.00027669,15]
[341636304,1731049845296,-524.79,0.00027669,2]
[341636306,1731049845307,-559.44176726,0.0002767,2]
[341636308,1731049845316,-1228.41195973,0.0002767,2]
[341636310,1731049845325,-500.0,0.00027673,4]
[341636312,1731049845335,-150.0,0.00027676,2]
[341636314,1731049845344,-150.0,0.00027677,2]
[341636316,1731049845354,-150.0,0.0002768,2]
[341636318,1731049845364,-150.0,0.0002768,2]
[341636320,1731049845374,-150.0,0.00027684,2]
[341636322,1731049845383,-150.0,0.00027688,2]
[341636324,1731049845392,-150.0,0.00027689,2]
[341636326,1731049845401,-150.0,0.00027692,2]
[341636328,1731049845413,-150.0,0.00027692,2]
[341636330,1731049845424,-152.0,0.00027694,4]
[341636333,1731049845436,-1500.0,0.00027695,2]
[341636335,1731049845449,-150.0,0.00027697,2]
[341636337,1731049845461,-2010.24,0.000277,2]
[341636339,1731049845472,-2000.0,0.000277,10]
[341636341,1731049845483,-150.0,0.00027701,2]
[341636344,1731049845494,-150.0,0.00027702,2]
[341636346,1731049845506,-150.0,0.00027709,2]
[341636348,1731049845518,-2000.0,0.0002772,5]
[341636350,1731049845530,-150.0,0.00027737,2]
[341636352,1731049845541,-150.0,0.00027738,2]
[341636355,1731049845554,-911.035,0.0002774,17]
[341636357,1731049845567,-150.0,0.0002774,2]
[341636359,1731049845578,-150.0,0.00027742,2]
[341636361,1731049845595,-150.0,0.00027748,2]
[341636363,1731049845607,-5924.0,0.00027753,2]
[341636365,1731049845618,-150.0,0.00027753,2]
[341636368,1731049845631,-1090.0,0.00027753,2]
[341636370,1731049845641,-150.0,0.00027757,2]
[341636372,1731049845652,-150.0,0.00027763,2]
[341636374,1731049845664,-150.0,0.0002777,2]
[341636376,1731049845676,-150.0,0.00027773,2]
[341636378,1731049845688,-150.0,0.00027781,2]
[341636380,1731049845701,-150.0,0.00027781,2]
[341636383,1731049845712,-150.0,0.00027782,2]
[341636385,1731049845725,-150.0,0.00027785,2]
[341636387,1731049845737,-150.0,0.00027791,2]
[341636389,1731049845750,-150.0,0.00027794,2]
[341636392,1731049845762,-150.0,0.00027799,2]
[341636394,1731049845775,-402.51705841,0.00027799,2]
[341636396,1731049845787,-672.903841,0.000278,2]
[341636398,1731049845799,-150.0,0.000278,2]
[341636401,1731049845812,-2000.0,0.000278,2]
[341636403,1731049845824,-4100.0,0.000278,10]
[341636405,1731049845837,-150.0,0.00027802,2]
[341636407,1731049845848,-150.0,0.00027805,2]
[341636410,1731049845861,-150.0,0.00027817,2]
[341636412,1731049845873,-150.0,0.00027822,2]
[341636414,1731049845885,-150.0,0.00027823,2]
[341636416,1731049845898,-150.0,0.00027826,2]
[341636419,1731049845911,-2204.74484132,0.00027828,2]
[341636421,1731049845922,-150.0,0.00027829,2]
[341636423,1731049845936,-150.0,0.0002783,2]
[341636425,1731049845948,-150.0,0.00027833,2]
[341636428,1731049845961,-150.0,0.00027836,2]
[341636430,1731049845974,-150.0,0.00027836,2]
[341636432,1731049845985,-150.0,0.00027841,2]
[341636434,1731049845996,-320.6856588,0.00027843,2]
[341636436,1731049846008,-2035.515,0.00027845,2]
[341636438,1731049846020,-10720.0733,0.00027845,2]
[341636439,1731049846032,-150.0,0.00027847,2]
[341636440,1731049846046,-1500.0,0.00027847,2]
[341636441,1731049846061,-150.0,0.00027854,2]
[341636442,1731049846075,-150.0,0.00027859,2]
[341636443,1731049846086,-150.0,0.00027861,2]
[341636444,1731049846098,-150.0,0.00027866,2]
[341636445,1731049846110,-150.0,0.00027869,2]
[341636446,1731049846122,-150.0,0.0002787,2]
[341636448,1731049846134,-150.0,0.00027876,2]
[341636452,1731049846147,-150.0,0.00027876,2]
[341636454,1731049846160,-150.0,0.00027878,2]
[341636456,1731049846174,-150.0,0.00027879,2]
[341636458,1731049846187,-1500.0,0.0002788,2]
[341636460,1731049846199,-150.0,0.00027881,2]
[341636463,1731049846210,-150.0,0.00027881,2]
[341636464,1731049846220,-150.0,0.00027882,2]
[341636467,1731049846231,-150.0,0.0002789,2]
[341636469,1731049846242,-150.0,0.00027892,2]
[341636471,1731049846253,-150.0,0.00027892,2]
[341636473,1731049846263,-150.0,0.00027894,2]
[341636475,1731049846275,-150.0,0.00027899,2]
[341636477,1731049846286,-150.0,0.00027899,2]
[341636479,1731049846297,-398.0,0.000279,11]
[341636481,1731049846310,-196.0,0.000279,11]
[341636483,1731049846321,-797.0,0.000279,11]
[341636486,1731049846332,-516.984591,0.000279,2]
[341636490,1731049846342,-6100.0,0.000279,10]
[341636492,1731049846354,-204.0,0.000279,11]
[341636494,1731049846367,-150.0,0.00027903,2]
[341636496,1731049846382,-150.0,0.0002791,2]
[341636499,1731049846394,-150.0,0.00027913,2]
[341636501,1731049846405,-150.0,0.00027915,2]
[341636503,1731049846417,-1500.0,0.00027919,2]
[341636505,1731049846428,-393.7801457,0.00027924,2]
[341636507,1731049846440,-150.0,0.00027933,2]
[341636509,1731049846452,-3349.4936088,0.00027934,2]
[341636512,1731049846463,-10685.596101,0.00027934,2]
[341636514,1731049846474,-293.5715548,0.00027934,2]
[341636516,1731049846485,-150.0,0.00027936,2]
[341636518,1731049846496,-150.0,0.00027938,2]
[341636520,1731049846508,-150.0,0.00027939,2]
[341636522,1731049846519,-500.0,0.00027939,2]
[341636525,1731049846531,-500.0,0.00027939,2]
[341636527,1731049846542,-500.0,0.00027939,2]
[341636529,1731049846553,-500.0,0.00027939,2]
[341636531,1731049846566,-500.0,0.00027939,2]
[341636533,1731049846576,-73881.03980626,0.0002794,2]
[341636535,1731049846587,-500.0,0.00027942,2]
[341636537,1731049846601,-500.0,0.00027942,2]
[341636539,1731049846612,-500.0,0.00027942,2]
[341636541,1731049846623,-1180.97,0.00027942,2]
[341636543,1731049846635,-500.0,0.00027942,2]
[341636545,1731049846647,-500.0,0.00027942,2]
[341636547,1731049846658,-500.0,0.00027942,2]
[341636549,1731049846670,-537.97,0.00027942,2]
[341636552,1731049846682,-668.44,0.00027942,2]
[341636554,1731049846693,-500.0,0.00027942,2]
[341636556,1731049846705,-500.0,0.00027942,2]
[341636558,1731049846716,-500.0,0.00027942,2]
[341636560,1731049846727,-588.32,0.00027942,2]
[341636562,1731049846738,-269.86988737,0.00027943,2]
[341636564,1731049846749,-500.0,0.00027943,2]
[341636567,1731049846761,-500.0,0.00027943,2]
[341636569,1731049846771,-486.19298524,0.00027943,2]
[341636570,1731049846782,-500.0,0.00027943,2]
[341636572,1731049846793,-589.5519553,0.00027943,2]
[341636574,1731049846805,-500.0,0.00027943,2]
[341636576,1731049846816,-500.0,0.00027943,2]
[341636578,1731049846826,-500.0,0.00027943,2]
[341636580,1731049846836,-500.0,0.00027943,2]
[341636582,1731049846847,-500.0,0.00027943,2]
[341636584,1731049846857,-500.0,0.00027943,2]
[341636586,1731049846867,-500.0,0.00027943,2]
[341636588,1731049846878,-500.0,0.00027943,2]
[341636590,1731049846888,-500.0,0.00027943,2]
[341636592,1731049846898,-500.0,0.00027943,2]
[341636594,1731049846909,-500.0,0.00027943,2]
[341636596,1731049846920,-500.0,0.00027943,2]
[341636598,1731049846931,-390.08817873,0.00027943,2]
[341636600,1731049846941,-500.0,0.00027943,2]
[341636603,1731049846952,-500.0,0.00027943,2]
[341636605,1731049846963,-500.0,0.00027943,2]
[341636607,1731049846974,-647.19,0.00027943,2]
[341636609,1731049846984,-500.0,0.00027943,2]
[341636611,1731049846995,-500.0,0.00027943,2]
[341636613,1731049847005,-621.04,0.00027943,2]
[341636615,1731049847016,-500.0,0.00027943,2]
[341636617,1731049847026,-500.0,0.00027943,2]
[341636619,1731049847037,-569.4,0.00027943,2]
[341636621,1731049847047,-500.0,0.00027943,2]
[341636623,1731049847059,-500.0,0.00027943,2]
[341636625,1731049847074,-500.0,0.00027943,2]
[341636627,1731049847084,-500.0,0.00027943,2]
[341636630,1731049847094,-500.0,0.00027943,2]
[341636632,1731049847105,-500.0,0.00027943,2]
[341636634,1731049847114,-500.0,0.00027943,2]
[341636636,1731049847124,-500.0,0.00027943,2]
[341636638,1731049847134,-782.82,0.00027943,2]
[341636640,1731049847146,-500.0,0.00027943,2]
[341636643,1731049847172,-500.0,0.00027943,2]
[341636646,1731049847186,-500.0,0.00027943,2]
[341636648,1731049847200,-500.0,0.00027943,2]
[341636651,1731049847215,-500.0,0.00027943,2]
[341636653,1731049847228,-500.0,0.00027943,2]
[341636655,1731049847241,-500.0,0.00027943,2]
[341636658,1731049847253,-500.0,0.00027943,2]
[341636660,1731049847266,-500.0,0.00027943,2]
[341636662,1731049847278,-500.0,0.00027943,2]
[341636665,1731049847291,-500.0,0.00027943,2]
[341636667,1731049847303,-500.0,0.00027943,2]
[341636669,1731049847316,-500.0,0.00027943,2]
[341636671,1731049847327,-300.0,0.00027943,2]
[341636674,1731049847340,-500.0,0.00027943,2]
[341636676,1731049847351,-650.48,0.00027943,2]
[341636678,1731049847363,-500.0,0.00027943,2]
[341636680,1731049847375,-500.0,0.00027943,2]
[341636682,1731049847386,-500.0,0.00027943,2]
[341636684,1731049847398,-500.0,0.00027943,2]
[341636687,1731049847409,-500.0,0.00027943,2]
[341636689,1731049847420,-500.0,0.00027943,2]
[341636691,1731049847430,-544.41,0.00027943,2]
[341636693,1731049847441,-500.0,0.00027943,2]
[341636695,1731049847453,-500.0,0.00027943,2]
[341636697,1731049847464,-538.84251834,0.00027943,2]
[341636699,1731049847474,-500.0,0.00027943,2]
[341636702,1731049847484,-500.0,0.00027943,2]
[341636704,1731049847495,-500.0,0.00027943,2]
[341636706,1731049847505,-500.0,0.00027943,2]
[341636708,1731049847517,-500.0,0.00027943,2]
[341636710,1731049847527,-583.85,0.00027943,2]
[341636712,1731049847539,-500.0,0.00027943,2]
[341636714,1731049847550,-500.0,0.00027943,2]
[341636716,1731049847562,-500.0,0.00027943,2]
[341636719,1731049847574,-500.0,0.00027943,2]
[341636721,1731049847585,-500.0,0.00027943,2]
[341636723,1731049847599,-500.0,0.00027943,2]
[341636725,1731049847610,-500.0,0.00027943,2]
[341636728,1731049847621,-500.0,0.00027943,2]
[341636730,1731049847633,-500.0,0.00027943,2]
[341636732,1731049847644,-358.95,0.00027943,2]
[341636734,1731049847656,-500.0,0.00027943,2]
[341636736,1731049847668,-500.0,0.00027943,2]
[341636738,1731049847679,-500.0,0.00027943,2]
[341636740,1731049847690,-500.0,0.00027943,2]
[341636742,1731049847701,-546.63,0.00027943,2]
[341636745,1731049847712,-500.0,0.00027943,2]
[341636747,1731049847723,-500.0,0.00027943,2]
[341636749,1731049847734,-500.0,0.00027943,2]
[341636751,1731049847743,-500.0,0.00027943,2]
[341636753,1731049847755,-500.0,0.00027943,2]
[341636755,1731049847766,-500.0,0.00027943,2]
[341636757,1731049847777,-500.0,0.00027943,2]
[341636759,1731049847787,-500.0,0.00027943,2]
[341636761,1731049847798,-500.0,0.00027943,2]
[341636763,1731049847808,-500.0,0.00027943,2]
[341636765,1731049847819,-500.0,0.00027943,2]
[341636768,1731049847830,-500.0,0.00027943,2]
[341636770,1731049847842,-500.0,0.00027943,2]
[341636772,1731049847853,-500.0,0.00027943,2]
[341636774,1731049847864,-500.0,0.00027943,2]
[341636776,1731049847875,-500.0,0.00027943,2]
[341636778,1731049847886,-500.0,0.00027943,2]
[341636780,1731049847897,-826.92,0.00027943,2]
[341636783,1731049847908,-155.91026025,0.00027943,2]
[341636785,1731049847919,-150.0,0.00027943,2]
[341636787,1731049847929,-500.0,0.00027943,2]
[341636789,1731049847940,-579.8,0.00027943,2]
[341636791,1731049847951,-500.0,0.00027943,2]
[341636793,1731049847963,-934.51,0.00027943,2]
[341636796,1731049847974,-499.425344,0.00027943,2]
[341636798,1731049847985,-500.0,0.00027943,2]
[341636800,1731049847996,-500.0,0.00027943,2]
[341636802,1731049848007,-556.0,0.00027943,2]
[341636804,1731049848017,-500.0,0.00027943,2]
[341636807,1731049848028,-500.0,0.00027943,2]
[341636809,1731049848039,-500.0,0.00027943,2]
[341636811,1731049848049,-500.0,0.00027943,2]
[341636813,1731049848064,-500.0,0.00027943,2]
[341636815,1731049848074,-500.0,0.00027943,2]
[341636818,1731049848085,-500.0,0.00027943,2]
[341636820,1731049848096,-500.0,0.00027943,2]
[341636821,1731049848106,-500.0,0.00027943,2]
[341636823,1731049848115,-500.0,0.00027943,2]
[341636825,1731049848125,-365.91717512,0.00027943,2]
[341636827,1731049848134,-500.0,0.00027943,2]
[341636829,1731049848144,-500.0,0.00027943,2]
[341636831,1731049848153,-500.0,0.00027943,2]
[341636833,1731049848163,-500.0,0.00027943,2]
[341636835,1731049848174,-500.0,0.00027943,2]
[341636837,1731049848183,-500.0,0.00027943,2]
[341636838,1731049848192,-500.0,0.00027943,2]
[341636865,1731049848528,-723.89,0.00027943,2]
[341636868,1731049848544,-500.0,0.00027943,2]
[341636871,1731049848560,-500.0,0.00027943,2]
[341636873,1731049848570,-500.0,0.00027943,2]
[341636875,1731049848579,-500.0,0.00027943,2]
[341636877,1731049848589,-500.0,0.00027943,2]
[341636879,1731049848600,-500.0,0.00027943,2]
[341636881,1731049848609,-598.56,0.00027943,2]
[341636883,1731049848618,-500.0,0.00027943,2]
[341636885,1731049848627,-500.0,0.00027943,2]
[341636887,1731049848637,-500.0,0.00027943,2]
[341636889,1731049848646,-500.0,0.00027943,2]
[341636891,1731049848656,-500.0,0.00027943,2]
[341636893,1731049848667,-692.31,0.00027943,2]
[341636895,1731049848676,-842.59,0.00027943,2]
[341636897,1731049848685,-500.0,0.00027943,2]
[341636899,1731049848694,-500.0,0.00027943,2]
[341636901,1731049848704,-500.0,0.00027943,2]
[341636903,1731049848713,-500.0,0.00027943,2]
[341636905,1731049848722,-500.0,0.00027943,2]
[341636906,1731049848731,-900.38,0.00027943,2]
[341636908,1731049848740,-1267.25,0.00027943,2]
[341636910,1731049848750,-520.9,0.00027943,2]
[341636912,1731049848760,-500.0,0.00027943,2]
[341636915,1731049848769,-500.0,0.00027943,2]
[341636916,1731049848778,-229.21219,0.00027943,2]
[341636918,1731049848787,-380.97699952,0.00027943,2]
[341636920,1731049848797,-500.0,0.00027943,2]
[341636923,1731049848809,-500.0,0.00027943,2]
[341636924,1731049848818,-500.0,0.00027943,2]
[341636927,1731049848827,-1425.02,0.00027943,2]
[341636929,1731049848836,-500.0,0.00027943,2]
[341636931,1731049848845,-1461.39,0.00027943,2]
[341636932,1731049848854,-500.0,0.00027943,2]
[341636934,1731049848864,-500.0,0.00027943,2]
[341636936,1731049848873,-500.0,0.00027943,2]
[341636938,1731049848883,-500.0,0.00027943,2]
[341636940,1731049848891,-500.0,0.00027943,2]
[341636942,1731049848901,-500.0,0.00027943,2]
[341636944,1731049848911,-2190.37,0.00027943,2]
[341636946,1731049848920,-906.43,0.00027943,2]
[341636948,1731049848930,-714.09,0.00027943,2]
[341636950,1731049848939,-1830.19,0.00027943,2]
[341636952,1731049848948,-500.0,0.00027943,2]
[341636955,1731049848957,-500.0,0.00027943,2]
[341636956,1731049848967,-500.0,0.00027943,2]
[341636958,1731049848976,-500.0,0.00027943,2]
[341636961,1731049848986,-623.01,0.00027943,2]
[341636962,1731049848995,-624.55,0.00027943,2]
[341636964,1731049849005,-651.39,0.00027943,2]
[341636966,1731049849014,-918.6,0.00027943,2]
[341636968,1731049849023,-862.67,0.00027943,2]
[341636970,1731049849033,-500.0,0.00027943,2]
[341636972,1731049849042,-500.0,0.00027943,2]
[341636974,1731049849051,-508.93,0.00027943,2]
[341636976,1731049849062,-500.0,0.00027943,2]
[341636978,1731049849074,-500.0,0.00027943,2]
[341636980,1731049849083,-500.0,0.00027943,2]
[341636983,1731049849093,-500.0,0.00027943,2]
[341636984,1731049849103,-500.0,0.00027943,2]
[341636986,1731049849112,-510.01,0.00027943,2]
[341636988,1731049849121,-621.03,0.00027943,2]
[341636990,1731049849130,-539.81,0.00027943,2]
[341636992,1731049849139,-500.0,0.00027943,2]
[341636994,1731049849149,-547.06,0.00027943,2]
[341636996,1731049849158,-500.0,0.00027943,2]
[341636998,1731049849168,-500.0,0.00027943,2]
[341637000,1731049849178,-1282.22,0.00027943,2]
[341637002,1731049849189,-671.82,0.00027943,2]
[341637005,1731049849199,-6926.29,0.00027943,2]
[341637007,1731049849209,-500.0,0.00027943,2]
[341637009,1731049849218,-500.0,0.00027943,2]
[341637011,1731049849227,-500.0,0.00027943,2]
[341637013,1731049849236,-688.03,0.00027943,2]
[341637015,1731049849245,-500.0,0.00027943,2]
[341637017,1731049849254,-582.5,0.00027943,2]
[341637018,1731049849263,-500.0,0.00027943,2]
[341637020,1731049849272,-667.63,0.00027943,2]
[341637023,1731049849282,-1078.01,0.00027943,2]
[341637025,1731049849291,-883.42,0.00027943,2]
[341637027,1731049849300,-500.0,0.00027943,2]
[341637028,1731049849311,-2811.6,0.00027943,2]
[341637031,1731049849321,-500.0,0.00027943,2]
[341637033,1731049849330,-500.0,0.00027943,2]
[341637035,1731049849340,-1180.09,0.00027943,2]
[341637037,1731049849349,-500.0,0.00027943,2]
[341637039,1731049849358,-1475.98,0.00027943,2]
[341637041,1731049849367,-1113.4,0.00027943,2]
[341637042,1731049849376,-500.0,0.00027943,2]
[341637045,1731049849386,-632.55,0.00027943,2]
[341637046,1731049849396,-500.0,0.00027943,2]
[341637049,1731049849406,-500.0,0.00027943,2]
[341637050,1731049849416,-500.0,0.00027943,2]
[341637052,1731049849426,-315.78237573,0.00027943,2]
[341637056,1731049849449,-23.80667118,0.00027943,2]
[341637058,1731049849458,-500.0,0.00027943,2]
[341637060,1731049849467,-500.0,0.00027943,2]
[341637062,1731049849477,-763.94,0.00027943,2]
[341637064,1731049849486,-798.91,0.00027943,2]
[341637066,1731049849494,-500.0,0.00027943,2]
[341637068,1731049849504,-500.0,0.00027943,2]
[341637070,1731049849513,-500.0,0.00027943,2]
[341637072,1731049849522,-500.0,0.00027943,2]
[341637074,1731049849531,-500.0,0.00027943,2]
[341637076,1731049849540,-500.0,0.00027943,2]
[341637077,1731049849549,-500.0,0.00027943,2]
[341637080,1731049849561,-2373.92278527,0.00027943,2]
[341637082,1731049849573,-68.15721473,0.00027943,2]
[341637084,1731049849583,-500.0,0.00027943,2]
[341637086,1731049849594,-500.0,0.00027943,2]
[341637088,1731049849604,-500.0,0.00027943,2]
[341637090,1731049849613,-500.0,0.00027943,2]
[341637092,1731049849622,-500.0,0.00027943,2]
[341637094,1731049849632,-500.0,0.00027943,2]
[341637096,1731049849641,-500.0,0.00027943,2]
[341637098,1731049849651,-500.0,0.00027943,2]
[341637100,1731049849660,-903.41159275,0.00027943,2]
[341637117,1731049849814,-500.0,0.00027669,2]
[341637119,1731049849823,-500.0,0.00027669,2]
[341637121,1731049849832,-500.0,0.00027669,2]
[341637123,1731049849841,-2863.00840725,0.00027943,2]
[341637125,1731049849850,-955.42,0.00027943,2]
[341637127,1731049849859,-545.07,0.00027943,2]
[341637129,1731049849867,-500.0,0.00027943,2]
[341637131,1731049849877,-1031.97,0.00027943,2]
[341637133,1731049849886,-500.0,0.00027943,2]
[341637135,1731049849895,-500.0,0.00027943,2]
[341637137,1731049849904,-291.85829275,0.00027943,2]
[341637139,1731049849915,-424.388,0.00027943,2]
[341637142,1731049849937,-37.39370725,0.00027943,2]
[341637144,1731049849946,-500.0,0.00027943,2]
[341637146,1731049849955,-500.0,0.00027943,2]
[341637148,1731049849964,-500.0,0.00027943,2]
[341637150,1731049849973,-1574.83,0.00027943,2]
[341637152,1731049849983,-837.68,0.00027943,2]
[341637154,1731049849991,-500.0,0.00027943,2]
[341637156,1731049850000,-500.0,0.00027943,2]
[341637158,1731049850009,-500.0,0.00027943,2]
[341637160,1731049850018,-500.0,0.00027943,2]
[341637162,1731049850027,-273.09432513,0.00027943,2]
[341637164,1731049850039,-226.90567487,0.00027943,2]
[341637166,1731049850048,-398.42610835,0.00027943,2]
[341637169,1731049850061,-101.57389165,0.00027943,2]
[341637171,1731049850070,-491.82614181,0.00027943,2]
[341637173,1731049850079,-500.0,0.00027943,2]
[341637174,1731049850088,-500.0,0.00027943,2]
[341637175,1731049850097,-1057.05,0.00027943,2]
[341637176,1731049850106,-500.0,0.00027943,2]
[341637177,1731049850114,-9.49644212,0.00027943,2]
[341637236,1731049976350,155.44,0.00015342,2]
[341637239,1731050440815,150.0,0.00020101,2]
[341637240,1731050479023,161.55,0.00015342,2]
[341637243,1731050835131,-2242.0,0.000233,2]
[341637244,1731050835157,-336.44,0.00024461,2]
[341637245,1731050835182,-500.0,0.00025997,2]
[341637246,1731050835212,-800.0,0.00025997,2]
[341637247,1731050835238,-5271.83122026,0.00026,5]
[341637259,1731050948137,-170889.82168737,0.00023922,2]
[341637275,1731051031647,-402.51705841,0.00025999,2]
[341637277,1731051031657,-24728.16877974,0.00026,5]
[341637278,1731051031666,-157.95,0.00026082,2]
[341637279,1731051031675,-2000.0,0.000261,9]
[341637280,1731051031683,-191.25,0.00026119,30]
[341637281,1731051031692,-4100.0,0.000262,9]
[341637282,1731051031701,-248.57,0.0002622,2]
[341637283,1731051031710,-6100.0,0.000263,9]
[341637284,1731051031719,-6814.55487429,0.000264,9]
[341637285,1731051031732,-1385.44512571,0.000264,9]
[341637286,1731051031741,-250.0,0.0002647,2]
[341637287,1731051031751,-10200.0,0.000265,9]
[341637288,1731051031760,-2000.0,0.000266,9]
[341637289,1731051031769,-180.38,0.00026669,120]
[341637290,1731051031780,-9423.67,0.00026669,2]
[341637291,1731051031790,-2000.0,0.000267,9]
[341637292,1731051031800,-336.44,0.00026725,2]
[341637293,1731051031809,-2000.0,0.000268,9]
[341637294,1731051031819,-200.0,0.00026813,2]
[341637295,1731051031829,-178.31,0.00026813,2]
[341637296,1731051031839,-157.95,0.00026816,2]
[341637297,1731051031848,-152.76,0.00026839,2]
[341637298,1731051031857,-2000.0,0.000269,9]
[341637299,1731051031867,-17637.95873056,0.00026915,2]
[341637300,1731051031876,-1845.47421569,0.00026923,2]
[341637301,1731051031885,-8217.79101054,0.00026923,2]
[341637302,1731051031894,-500.0,0.00026973,2]
[341637303,1731051031906,-267.19,0.0002699,2]
[341637304,1731051031915,-267.19,0.0002699,2]
[341637305,1731051031924,-267.19,0.0002699,2]
[341637306,1731051031934,-267.19,0.0002699,2]
[341637307,1731051031943,-267.19,0.0002699,2]
[341637308,1731051031952,-267.19,0.0002699,2]
[341637309,1731051031961,-267.19,0.0002699,2]
[341637310,1731051031972,-267.19,0.0002699,2]
[341637311,1731051031981,-267.19,0.0002699,2]
[341637312,1731051031990,-267.19,0.0002699,2]
[341637313,1731051032000,-267.19,0.0002699,2]
[341637314,1731051032009,-267.19,0.0002699,2]
[341637315,1731051032018,-267.19,0.0002699,2]
[341637316,1731051032027,-267.19,0.0002699,2]
[341637317,1731051032036,-267.19,0.0002699,2]
[341637318,1731051032045,-267.19,0.0002699,2]
[341637319,1731051032054,-267.19,0.0002699,2]
[341637320,1731051032063,-267.19,0.0002699,2]
[341637321,1731051032072,-267.19,0.0002699,2]
[341637322,1731051032081,-267.19,0.0002699,2]
[341637323,1731051032090,-267.19,0.0002699,2]
[341637324,1731051032099,-267.19,0.0002699,2]
[341637325,1731051032109,-267.19,0.0002699,2]
[341637326,1731051032119,-267.19,0.0002699,2]
[341637327,1731051032321,-267.19,0.0002699,2]
[341637328,1731051032331,-267.19,0.0002699,2]
[341637329,1731051032342,-267.19,0.0002699,2]
[341637330,1731051032355,-267.19,0.0002699,2]
[341637331,1731051032364,-267.19,0.0002699,2]
[341637332,1731051032374,-267.19,0.0002699,2]
[341637333,1731051032384,-267.19,0.0002699,2]
[341637334,1731051032393,-267.19,0.0002699,2]
[341637335,1731051032403,-267.19,0.0002699,2]
[341637336,1731051032413,-267.19,0.0002699,2]
[341637337,1731051032422,-267.19,0.0002699,2]
[341637338,1731051032431,-267.19,0.0002699,2]
[341637339,1731051032441,-267.19,0.0002699,2]
[341637340,1731051032451,-267.19,0.0002699,2]
[341637341,1731051032460,-267.19,0.0002699,2]
[341637342,1731051032470,-267.19,0.0002699,2]
[341637343,1731051032481,-267.19,0.0002699,2]
[341637344,1731051032495,-267.19,0.0002699,2]
[341637345,1731051032504,-267.19,0.0002699,2]
[341637346,1731051032514,-267.19,0.0002699,2]
[341637347,1731051032522,-267.19,0.0002699,2]
[341637348,1731051032532,-267.19,0.0002699,2]
[341637349,1731051032541,-267.19,0.0002699,2]
[341637350,1731051032551,-267.19,0.0002699,2]
[341637351,1731051032560,-267.19,0.0002699,2]
[341637352,1731051032569,-267.19,0.0002699,2]
[341637353,1731051032579,-267.19,0.0002699,2]
[341637354,1731051032588,-267.19,0.0002699,2]
[341637355,1731051032597,-267.19,0.0002699,2]
[341637356,1731051032606,-267.19,0.0002699,2]
[341637357,1731051032617,-267.19,0.0002699,2]
[341637358,1731051032627,-267.19,0.0002699,2]
[341637359,1731051032636,-267.19,0.0002699,2]
[341637360,1731051032645,-267.19,0.0002699,2]
[341637361,1731051032655,-267.19,0.0002699,2]
[341637362,1731051032664,-267.19,0.0002699,2]